fUST/lending_fUST_20240305
["ID","MTS","AMOUNT","RATE_DAILY","PERIOD"]
[316693245,1709587918366,-2000.0,0.00029863,30]
[316693246,1709587918414,-2000.0,0.00029863,30]
[316693247,1709587918460,-10000.0,0.00029863,30]
[316693248,1709587918509,-1922.08,0.00029863,30]
[316693249,1709587918556,-404.018,0.000299,60]
[316693250,1709587918601,-630.24301667,0.000299,90]
[316693251,1709587918648,-5223.79873552,0.0003,30]
[316693252,1709587918695,-10000.0,0.0003,30]
[316693253,1709587918768,-11000.0,0.0003,30]
[316693254,1709587918844,-11239.49886311,0.0003,30]
[316693261,1709587934027,74704.36884292,0.00027,30]
[316694018,1709589512038,1189.12269699,0.0001862,2]
[316694049,1709590163126,-324.89545159,0.00018898,2]
[316694050,1709590163146,-5040.0,0.00018899,2]
[316694051,1709590163167,-990.16430162,0.000189,2]
[316694052,1709590163187,-11.90792055,0.00019,2]
[316694114,1709590232745,-3942.11305137,0.00018999,2]
[316694116,1709590232755,-1403.75650519,0.00019,2]
[316694118,1709590232764,-1412.52044344,0.00021,2]
[316694120,1709590232776,-54152.37108414,0.00021,2]
[316694121,1709590232785,-166.0,0.00022,2]
[316694123,1709590232794,-166.0,0.00022192,2]
[316694125,1709590232804,-169.15236165,0.00022816,3]
[316694128,1709590232814,-153.0,0.000229,2]
[316694131,1709590232823,-200.8081144,0.000229,2]
[316694134,1709590232832,-200.8081144,0.000229,2]
[316694136,1709590232841,-153.0,0.000229,2]
[316694137,1709590232850,-153.0,0.000229,2]
[316694139,1709590232860,-200.376916,0.000229,2]
[316694141,1709590232869,-166.0,0.00023014,2]
[316694143,1709590232879,-681.50806063,0.00023099,5]
[316694145,1709590232889,-2852.5673424,0.00023099,5]
[316694147,1709590232899,-1979.96572077,0.00023099,5]
[316694148,1709590232908,-3798.44576061,0.00023099,5]
[316694150,1709590232920,-1201.55423939,0.00023099,5]
[316694152,1709590232929,-150.0,0.00023142,2]
[316694154,1709590232938,-876.58246028,0.00023189,2]
[316694156,1709590232948,-200.3368022,0.0002337,2]
[316694158,1709590232957,-1868.20859517,0.00023697,3]
[316694160,1709590232967,-333.64,0.0002379,3]
[316694161,1709590232978,-18450.19167336,0.000238,2]
[316694186,1709590238684,-934.48536202,0.000238,2]
[316694187,1709590238696,-1024.25,0.000238,2]
[316694204,1709590241633,-4094.45177997,0.000238,2]
[316694205,1709590241645,-1546.1335093,0.000238,2]
[316694206,1709590241657,-27785.22258138,0.000238,2]
[316694207,1709590241694,-479.503485,0.000238,2]
[316694259,1709590243585,-1134.65495052,0.000238,2]
[316694373,1709590246786,-7547.22387079,0.000238,2]
[316694374,1709590246822,-606.32476799,0.000239,2]
[316694375,1709590246832,-990.16430162,0.000239,2]
[316694376,1709590246841,-281.74868251,0.00023998,2]
[316694377,1709590246850,-155.0341075,0.00023998,2]
[316694378,1709590246859,-290.22334133,0.00023998,2]
[316694379,1709590246868,-537.28298361,0.00023998,2]
[316694380,1709590246877,-156.08322571,0.00023998,2]
[316694381,1709590246886,-7712.0751366,0.00023998,2]
[316694382,1709590246896,-173.99017365,0.00023998,2]
[316694383,1709590246905,-1508.1025562,0.00023998,2]
[316694384,1709590246913,-2594.09126452,0.00023998,2]
[316694385,1709590246922,-744.79129449,0.00023998,2]
[316694386,1709590246931,-12582.20835416,0.00023998,2]
[316694387,1709590246942,-711.76401241,0.00023998,2]
[316694388,1709590246952,-385.86658736,0.00023998,2]
[316694389,1709590246961,-155.15251081,0.00023998,2]
[316694390,1709590246970,-157.1486779,0.00023998,2]
[316694391,1709590246980,-228.13682818,0.00023998,2]
[316694392,1709590246991,-1067.12847857,0.00023998,2]
[316694393,1709590247000,-332.19932646,0.00023998,2]
[316694394,1709590247010,-324.43268993,0.00023998,2]
[316694395,1709590247019,-4200.0,0.00023998,2]
[316694396,1709590247028,-933.18018284,0.00023999,2]
[316694397,1709590247038,-764.29362768,0.00023999,2]
[316694398,1709590247047,-22071.81973676,0.00024,6]
[316694442,1709591016607,2615.1667192,0.0001817,2]
[316694444,1709591066074,631.509495,0.00018272,2]
[316694447,1709591110107,3627.89559274,0.0001817,2]
[316694448,1709591110137,1655.06701993,0.0001817,2]
[316694449,1709591116916,7344.93298007,0.00018313,2]
[316694450,1709591116945,492.32567113,0.00018313,2]
[316694452,1709591128151,5282.96261267,0.0001817,2]
[316694454,1709591146112,1602.12685759,0.00018313,2]
[316694455,1709591176433,1622.58485861,0.00018155,2]
[316694456,1709591176469,152.98291179,0.00018155,2]
[316694459,1709591231276,24900.0,0.00018149,2]
[316694512,1709591432727,-318.61447119,0.00018691,2]
[316694513,1709591432736,-623.74333508,0.00018691,2]
[316694514,1709591432746,-6917.07011006,0.00018691,2]
[316694515,1709591432755,-1080.24298436,0.00018691,2]
[316694516,1709591432764,-321.57741087,0.00018692,2]
[316694517,1709591432775,-703.4462778,0.00018692,2]
[316694518,1709591432789,-15934.83613269,0.00018692,2]
[316694519,1709591432798,-274.17258195,0.00018693,2]
[316694520,1709591432808,-13724.91807251,0.00018693,2]
[316694521,1709591432818,-2188.2,0.00018694,2]
[316694522,1709591432827,-214.57920582,0.00018694,2]
[316694523,1709591432837,-535.78782311,0.00018694,2]
[316694524,1709591432846,-324.89545159,0.00018695,2]
[316694525,1709591432855,-155.0341075,0.00018695,2]
[316694527,1709591432865,-1472.85786267,0.00018695,2]
[316694529,1709591432874,-15433.84892202,0.00018696,2]
[316694531,1709591432884,-3000.0,0.00018711,2]
[316694533,1709591432893,-421.234234,0.000189,2]
[316694535,1709591432902,-175.91107,0.00019178,2]
[316694537,1709591432912,-500.0,0.00019449,2]
[316694539,1709591432922,-500.0,0.00019504,2]
[316694541,1709591432932,-175.91107,0.000203,2]
[316694543,1709591432942,-447.30925345,0.00020519,2]
[316694545,1709591432952,-168.089218,0.0002062,2]
[316694547,1709591432962,-3930.03440143,0.00021,2]
[316694549,1709591432973,-175.91107,0.00021422,2]
[316694551,1709591432983,-166.0,0.00022,2]
[316694553,1709591432993,-230.34167958,0.00022818,3]
[316694555,1709591433002,-529.78586305,0.00022818,3]
[316694557,1709591433011,-442.94704984,0.00022818,3]
[316694559,1709591433021,-166.0,0.00023014,2]
[316694561,1709591433031,-851.88507579,0.00023093,5]
[316694563,1709591433041,-5000.0,0.00023093,5]
[316694565,1709591433049,-494.99143019,0.00023093,4]
[316694566,1709591433058,-155.0,0.00023657,2]
[316694567,1709591433068,-206.24,0.0002389,3]
[316694568,1709591433077,-618.76,0.0002389,3]
[316694569,1709591433086,-154.09343862,0.00023899,2]
[316694570,1709591433096,-154.09343862,0.00023899,2]
[316694571,1709591433106,-154.09343862,0.000239,2]
[316694572,1709591433115,-154.09343862,0.000239,2]
[316694573,1709591433125,-21353.76105615,0.000239,2]
[316694574,1709591433134,-421.234234,0.000239,2]
[316694575,1709591433144,-154.09343862,0.000239,2]
[316694576,1709591433154,-658.27872959,0.0002392,2]
[316694577,1709591433163,-8238.30978747,0.0002398,2]
[316694578,1709591433173,-923.23306243,0.00023997,2]
[316694579,1709591433183,-745.08532418,0.00023998,2]
[316694580,1709591433192,-697.50319911,0.00023998,2]
[316694581,1709591433201,-1635.48761741,0.00023998,2]
[316694582,1709591433210,-400.0,0.00023998,2]
[316694583,1709591433221,-262.31089602,0.00023998,2]
[316694584,1709591433230,-557.80133072,0.00023998,2]
[316694585,1709591433240,-2595.57809913,0.00023998,2]
[316694586,1709591433341,-15242.2496496,0.00023998,2]
[316694587,1709591433350,-1020.8534454,0.00023998,2]
[316694588,1709591433361,-309.81413939,0.00023998,2]
[316694589,1709591433370,-287.26407698,0.00023998,2]
[316694590,1709591433380,-883.98291073,0.00023998,2]
[316694591,1709591433389,-12922.6313275,0.00023999,2]
[316694592,1709591433398,-66330.97949109,0.00024,6]
[316694593,1709591433424,-21571.708546,0.00024,6]
[316694608,1709591439363,-1426.53353647,0.00024,6]
[316694609,1709591439477,-15325.28130012,0.00024,6]
[316694610,1709591439489,-20171.68823926,0.00024,6]
[316694657,1709591441655,-3249.65780564,0.00024,6]
[316694708,1709591443785,-906.10743428,0.00024,6]
[316694710,1709591443800,-1257.8434961,0.00024,6]
[316694714,1709591443827,-2087.13655181,0.00024,6]
[316694716,1709591443841,-348.89256572,0.00024,6]
[316694841,1709592324135,682.3821121,0.00017978,2]
[316694937,1709592450104,315.754747,0.00018045,2]
[316695008,1709592631976,-623.74333508,0.00018648,2]
[316695010,1709592631986,-214.57920582,0.00018649,2]
[316695012,1709592631995,-6917.07011006,0.00018649,2]
[316695014,1709592632005,-1080.24298436,0.0001865,2]
[316695015,1709592632014,-13724.91807251,0.0001865,2]
[316695017,1709592632023,-274.17258195,0.00018651,2]
[316695019,1709592632032,-324.89545159,0.00018651,2]
[316695021,1709592632041,-155.06512735,0.00018651,2]
[316695023,1709592632050,-15934.83613269,0.00018651,2]
[316695025,1709592632059,-703.4462778,0.00018652,2]
[316695027,1709592632068,-1472.85786267,0.00018652,2]
[316695029,1709592632078,-2188.2,0.00018653,2]
[316695031,1709592632087,-176.74934341,0.00018658,2]
[316695033,1709592632096,-328.97348357,0.000189,2]
[316695035,1709592632109,-525.21526682,0.00020139,2]
[316695590,1709592637972,-7190.0,0.00020139,2]
[316695592,1709592637985,-17184.78473318,0.00020139,2]
[316695594,1709592637994,-162.2188248,0.00021178,2]
[316695596,1709592638003,-166.0,0.00022,2]
[316695598,1709592638013,-1916.78661388,0.00022819,3]
[316695600,1709592638022,-121.55327538,0.00022821,3]
[316695602,1709592638034,-63.05611479,0.00022821,3]
[316695604,1709592638043,-1000.0,0.00022821,5]
[316695606,1709592638052,-186.12826202,0.00022821,3]
[316695609,1709592638063,-354.5300003,0.00022821,3]
[316695611,1709592638081,-112.68649637,0.00022821,3]
[316695613,1709592638090,-166.0,0.00023014,2]
[316695615,1709592638099,-592.0,0.00023083,3]
[316695617,1709592638108,-723.06000363,0.00023093,5]
[316695924,1709592641035,-504.18174388,0.00023093,5]
[316696119,1709592643042,-9652.98732955,0.00023093,5]
[316696411,1709592646215,-11041.44927176,0.00023093,5]
[316696413,1709592646224,-4304.55932824,0.00023093,5]
[316698935,1709593758274,12698.8394046,0.00018441,2]
[316699248,1709593834725,-703.4462778,0.00018898,2]
[316699251,1709593834736,-155.08374522,0.00018899,2]
[316699252,1709593834745,-683.68263737,0.000189,2]
[316699254,1709593834755,-15934.83613269,0.00019421,2]
[316699256,1709593834764,-13724.91807251,0.00019422,2]
[316699258,1709593834774,-487.17691031,0.00019422,2]
[316699264,1709593834816,-574.69239176,0.00019422,2]
[316699266,1709593834827,-1396.20802062,0.00019422,2]
[316699268,1709593834838,-581.71068819,0.00019422,2]
[316699576,1709593838125,-214.57920582,0.00018898,2]
[316699578,1709593838135,-3877.28209918,0.00019422,2]
[316699580,1709593838144,-362.81913764,0.00019423,2]
[316699582,1709593838155,-260.92419744,0.00019423,2]
[316699584,1709593838164,-855.32141094,0.00019423,2]
[316699588,1709593838205,-3344.67858906,0.00019423,2]
[316699589,1709593838214,-431.56771804,0.00019424,2]
[316699856,1709593841340,-648.67526632,0.00019424,2]
[316699858,1709593841351,-324.89545159,0.00019425,2]
[316699860,1709593841364,-510.00739472,0.00019442,2]
[316699862,1709593841374,-157.877373,0.00019458,2]
[316699864,1709593841385,-1472.85786267,0.00021994,2]
[316699866,1709593841395,-167.0,0.00022,2]
[316699868,1709593841408,-5182.458282,0.00022676,2]
[316699870,1709593841417,-168.089218,0.00022679,2]
[316699872,1709593841427,-158.19537494,0.00022822,3]
[316699874,1709593841437,-155.0,0.0002302,2]
[316699876,1709593841447,-695.44067176,0.00023093,5]
[316699878,1709593841457,-352.49198249,0.00023093,5]
[316699880,1709593841467,-855.77020272,0.00023093,5]
[316699882,1709593841479,-2767.45870473,0.00023094,5]
[316699884,1709593841493,-309.04479991,0.00023094,5]
[316699886,1709593841504,-153.0,0.0002337,2]
[316699888,1709593841514,-200.8081144,0.0002337,2]
[316699890,1709593841524,-153.0,0.0002337,2]
[316699892,1709593841535,-200.8081144,0.0002337,2]
[316699894,1709593841545,-200.8081144,0.0002337,2]
[316699896,1709593841556,-200.1279018,0.0002337,2]
[316699898,1709593841570,-153.0,0.0002337,2]
[316699901,1709593841582,-153.0,0.0002337,2]
[316699903,1709593841592,-153.0,0.0002337,2]
[316699904,1709593841603,-411.6631978,0.0002337,2]
[316699906,1709593841613,-173.96886093,0.000239,2]
[316699909,1709593841623,-683.68263737,0.000239,2]
[316699910,1709593841632,-876.07492167,0.0002391,2]
[316699914,1709593841655,-1708.76298989,0.0002391,2]
[316699916,1709593841665,-15936.2164785,0.0002398,2]
[316700083,1709593843219,-57675.66297418,0.0002398,2]
[316700085,1709593843228,-644.82982368,0.00023987,2]
[316700087,1709593843237,-591.96,0.0002399,3]
[316700089,1709593843247,-745.08532418,0.00023998,2]
[316700091,1709593843256,-400.0,0.00023998,2]
[316700093,1709593843265,-316.24664396,0.00023998,2]
[316700095,1709593843275,-1125.56493891,0.00023998,2]
[316700097,1709593843284,-212.29523362,0.00023999,2]
[316700099,1709593843293,-428.7992585,0.00023999,2]
[316700101,1709593843302,-20851.44723378,0.00023999,2]
[316700103,1709593843311,-154.74,0.00023999,2]
[316700105,1709593843319,-154.74,0.00023999,2]
[316700107,1709593843328,-154.74,0.00023999,2]
[316700109,1709593843338,-154.74,0.00023999,2]
[316700111,1709593843348,-154.74,0.00023999,2]
[316700112,1709593843357,-152.27,0.00023999,2]
[316700114,1709593843366,-152.26,0.00023999,2]
[316700116,1709593843375,-152.26,0.00023999,2]
[316700118,1709593843384,-109823.38172886,0.00024,6]
[316700121,1709593843396,-1792.4772453,0.00024,6]
[316700405,1709593846342,-678.47,0.00022822,3]
[316700408,1709593846360,-854.14952556,0.00022822,3]
[316700410,1709593846370,-4147.89297444,0.00024,6]
[316703863,1709595034768,-155.12720431,0.00019165,2]
[316703865,1709595034778,-214.57920582,0.00019166,2]
[316703867,1709595034790,-2590.24059445,0.00019166,2]
[316703873,1709595034832,-884.01695894,0.00019166,2]
[316703875,1709595034844,-10250.66051912,0.00019166,2]
[316703877,1709595034853,-6917.07011006,0.00019166,2]
[316703879,1709595034866,-2188.2,0.00019167,2]
[316703881,1709595034875,-883.98291073,0.00019168,2]
[316703883,1709595034884,-15934.83613269,0.00019168,2]
[316703885,1709595034893,-1080.24298436,0.00019169,2]
[316703886,1709595034902,-228.939703,0.00019178,2]
[316703888,1709595034912,-166.666666,0.00019734,2]
[316703891,1709595034921,-1150.0,0.0002,2]
[316703893,1709595034931,-157.877373,0.00020584,2]
[316703895,1709595034940,-9496.2974065,0.00020807,2]
[316703897,1709595034949,-500.0,0.00021889,2]
[316703899,1709595034958,-543.88889838,0.000219,2]
[316703901,1709595034967,-695.33526627,0.00021918,2]
[316703903,1709595034976,-197.0,0.00022,2]
[316703904,1709595034986,-507.0,0.00022,2]
[316703906,1709595034996,-507.0,0.00022192,2]
[316703908,1709595035005,-166.666666,0.00022424,2]
[316703911,1709595035014,-507.0,0.00022466,2]
[316703913,1709595035024,-507.0,0.0002274,2]
[316703915,1709595035035,-459.78585766,0.00022822,2]
[316703916,1709595035044,-159.73221783,0.00022822,2]
[316703918,1709595035053,-507.0,0.00023014,2]
[316703920,1709595035063,-507.0,0.00023014,2]
[316703922,1709595035074,-6883.98242809,0.00023086,5]
[316703924,1709595035084,-173.9688609,0.000239,2]
[316703927,1709595035095,-57675.66297418,0.0002398,2]
[316703928,1709595035112,-644.82982368,0.00023983,2]
[316703930,1709595035125,-2228.98440213,0.00023989,2]
[316703933,1709595035135,-591.96,0.0002399,3]
[316703935,1709595035145,-387.79756552,0.00023998,2]
[316703937,1709595035155,-238.66257272,0.00023998,2]
[316703938,1709595035165,-745.08532418,0.00023998,2]
[316703940,1709595035176,-400.0,0.00023998,2]
[316703942,1709595035186,-316.24664396,0.00023998,2]
[316703944,1709595035196,-212.29523362,0.00023998,2]
[316703946,1709595035206,-428.7992585,0.00023998,2]
[316703948,1709595035216,-1635.48761741,0.00023998,2]
[316703950,1709595035226,-489.69454128,0.00023999,2]
[316703952,1709595035236,-646.73851644,0.00023999,2]
[316703954,1709595035245,-2429.16352188,0.00023999,2]
[316703956,1709595035255,-151.0,0.00023999,2]
[316703958,1709595035266,-151.0,0.00023999,2]
[316703960,1709595035275,-151.0,0.00023999,2]
[316703962,1709595035285,-151.0,0.00023999,2]
[316703964,1709595035295,-151.0,0.00023999,2]
[316703966,1709595035305,-151.0,0.00023999,2]
[316703968,1709595035315,-151.0,0.00023999,2]
[316703970,1709595035325,-151.0,0.00023999,2]
[316703972,1709595035335,-283348.29255058,0.00024,6]
[316703974,1709595035345,-208.77342431,0.00024,2]
[316703976,1709595035355,-184.08617855,0.00024,2]
[316703978,1709595035368,-4646.28214522,0.00024,2]
[316703980,1709595035378,-10984.15886244,0.00024,4]
[316704236,1709595038373,-1012.23754016,0.00024,4]
[316704560,1709595041349,-363.73,0.00024,4]
[316704562,1709595041361,-267.915,0.00024,4]
[316705152,1709595046427,-7595.64402565,0.00024,4]
[316705154,1709595046436,-531.94035449,0.00024,2]
[316705156,1709595046445,-6385.41295657,0.00024,2]
[316705158,1709595046454,-1458.88602451,0.00024,2]
[316705160,1709595046464,-2000.0,0.00024,2]
[316705162,1709595046473,-155.22848603,0.00024,2]
[316705164,1709595046482,-151.0,0.00024,2]
[316705165,1709595046492,-353.890098,0.00024,2]
[316705168,1709595046501,-353.890098,0.00024,2]
[316705169,1709595046511,-151.0,0.00024,2]
[316705171,1709595046520,-151.0,0.00024,2]
[316705173,1709595046530,-166.044309,0.00024,2]
[316705175,1709595046539,-914.0706374,0.00024,2]
[316707658,1709595828274,-252841.37194934,0.00025067,60]
[316707659,1709595828298,-179.65959514,0.00025067,120]
[316707660,1709595828322,-2455.63912789,0.00025067,120]
[316707661,1709595828345,-2000.0,0.00025067,120]
[316707662,1709595828370,-642523.32932763,0.00025067,60]
[316707663,1709595831474,-900000.0,0.00025067,60]
[316707664,1709595834228,-900000.0,0.00025067,60]
[316707758,1709596235894,-535.78782311,0.00018748,2]
[316707760,1709596235904,-2188.2,0.00018749,2]
[316707762,1709596235913,-321.57741087,0.00018749,2]
[316707764,1709596235923,-697.50319911,0.0001875,2]
[316707766,1709596235933,-1320.20177099,0.0001875,2]
[316707771,1709596235968,-12404.71630152,0.0001875,2]
[316707773,1709596235979,-883.98291073,0.00018751,2]
[316707775,1709596235988,-15433.84892202,0.00018751,2]
[316707777,1709596235998,-1767.7569662,0.00018752,2]
[316707779,1709596236007,-214.57920582,0.00019415,2]
[316707781,1709596236017,-6917.07011006,0.00019417,2]
[316707783,1709596236026,-6755.6276373,0.0001942,2]
[316707785,1709596236036,-250.0,0.00019767,2]
[316707787,1709596236046,-155.18156243,0.00020143,2]
[316707789,1709596236055,-238.66257272,0.00020143,2]
[316707791,1709596236064,-241.0125324,0.00020144,2]
[316707793,1709596236073,-1154.9602321,0.00021225,2]
[316707795,1709596236082,-317.0,0.00022,2]
[316707797,1709596236092,-317.0,0.00022192,2]
[316707799,1709596236101,-317.0,0.00022466,2]
[316707800,1709596236111,-317.0,0.0002274,2]
[316707802,1709596236121,-1000.0,0.00022822,5]
[316707804,1709596236130,-547.36411627,0.00022822,2]
[316707806,1709596236139,-186.32548256,0.00022824,2]
[316707808,1709596236148,-523.31653136,0.00022967,2]
[316707810,1709596236158,-317.0,0.00023014,2]
[316707812,1709596236167,-317.0,0.00023014,2]
[316707814,1709596236178,-155.0,0.00023657,2]
[316707816,1709596236187,-45368.86908016,0.0002388,10]
[316707818,1709596236199,-858.87844997,0.0002388,10]
[316707821,1709596236210,-4223.2508062,0.0002388,10]
[316708045,1709596238527,-1080.24298436,0.00018747,2]
[316708047,1709596238537,-6393.59188429,0.0002388,10]
[316708049,1709596238548,-11837.13792577,0.0002388,10]
[316708051,1709596238559,-2152.6487808,0.0002388,10]
[316708370,1709596241569,-184.5729185,0.00022689,2]
[316708372,1709596241578,-3155.24414768,0.0002388,10]
[316708386,1709596241684,-4907.09,0.0002388,10]
[316708390,1709596241724,-67318.14215055,0.0002388,10]
[316708573,1709596243545,-41834.69602458,0.0002388,10]
[316708575,1709596243555,-4359.85961372,0.00024,2]
[316708577,1709596243565,-3929.59060384,0.00024,2]
[316708579,1709596243574,-10000.0,0.00024,2]
[316708581,1709596243584,-10000.0,0.00024,2]
[316708583,1709596243594,-10000.0,0.00024,2]
[316708585,1709596243603,-4782.39139963,0.00024,2]
[316708847,1709596610931,10687.2838086,0.00018124,2]
[316708848,1709596643974,594.116266,0.00018047,2]
[316708853,1709596981066,227.562621,0.00017718,2]
[316708860,1709597206542,8812.06401719,0.00017718,2]
[316708861,1709597206568,56853.65816609,0.00017718,2]
[316708863,1709597218533,43777.14812219,0.00017718,2]
[316708866,1709597230712,36480.95676849,0.00017718,2]
[316708871,1709597272554,19006.57847638,0.00017718,2]
[316708874,1709597292539,19006.57847638,0.00017718,2]
[316708875,1709597308548,19006.57847638,0.00017718,2]
[316708892,1709597330669,19006.57847638,0.00017718,2]
[316708900,1709597350554,19006.57847638,0.00017718,2]
[316708902,1709597368550,19006.57847638,0.00017718,2]
[316708910,1709597388554,19006.57847638,0.00017718,2]
[316708919,1709597408553,19006.57847638,0.00017718,2]
[316708920,1709597426586,19006.57847638,0.00017718,2]
[316708994,1709597438733,-745.08532418,0.00018668,2]
[316708996,1709597438742,-703.4462778,0.00018668,2]
[316708997,1709597438752,-324.89545159,0.00018669,2]
[316708998,1709597438761,-883.98291073,0.00018669,2]
[316708999,1709597438770,-214.57920582,0.0001867,2]
[316709000,1709597438780,-8619.888797,0.0001867,2]
[316709001,1709597438798,-6622.3608526,0.0001867,2]
[316709002,1709597438807,-3028.23443696,0.00018671,2]
[316709003,1709597438818,-264.10216648,0.00018671,2]
[316709014,1709597441779,-2034.75599286,0.00018671,2]
[316709015,1709597441795,-6149.17331751,0.00018671,2]
[316709016,1709597441910,-2248.6521587,0.00018671,2]
[316709017,1709597441920,-1080.24298436,0.00018671,2]
[316709018,1709597441930,-428.7992585,0.00018671,2]
[316709019,1709597441940,-2188.2,0.00018672,2]
[316709020,1709597441951,-155.18622347,0.00018672,2]
[316709021,1709597441962,-1635.48761741,0.00018672,2]
[316709022,1709597441972,-567.10930148,0.000189,2]
[316709023,1709597441982,-1415.66442574,0.00019,2]
[316709024,1709597441995,-228.939703,0.00019178,2]
[316709025,1709597442005,-923.23306243,0.00019999,2]
[316709026,1709597442016,-10774.9159898,0.0002,2]
[316709166,1709597444561,19006.57847638,0.00017718,2]
[316709189,1709597446868,-39000.0608988,0.0002,2]
[316709191,1709597446880,-2150.62041929,0.0002,2]
[316709193,1709597446889,-169.93306697,0.0002,2]
[316709195,1709597446900,-3154.387567,0.0002,2]
[316709197,1709597446909,-400.0,0.0002,2]
[316709199,1709597446918,-98.19041392,0.0002,2]
[316709208,1709597446980,-140.4721588,0.0002,2]
[316709210,1709597446989,-155.18622347,0.00020999,2]
[316709212,1709597446999,-4096.6540989,0.00021,2]
[316709214,1709597447008,-1412.52044344,0.00021,2]
[316709216,1709597447017,-169.838586,0.00021556,2]
[316709218,1709597447026,-396.0,0.00022,2]
[316709220,1709597447035,-644.94440369,0.00022006,2]
[316709222,1709597447045,-396.0,0.00022192,2]
[316709223,1709597447055,-1005.15654509,0.00022609,2]
[316709225,1709597447064,-221.01134846,0.00022829,2]
[316709227,1709597447074,-427.33936996,0.00022829,2]
[316709229,1709597447083,-396.0,0.00023014,2]
[316709231,1709597447092,-500.45541113,0.00023088,4]
[316709233,1709597447101,-5000.0,0.00023088,5]
[316709235,1709597447110,-621.24722018,0.00023106,2]
[316709237,1709597447119,-277.7288203,0.00023562,2]
[316709239,1709597447128,-153.0,0.00023562,2]
[316709241,1709597447137,-153.0,0.00023562,2]
[316709243,1709597447147,-153.0,0.00023562,2]
[316709245,1709597447156,-153.0,0.00023562,2]
[316709247,1709597447165,-155.0,0.00023657,2]
[316709249,1709597447174,-591.96,0.00023687,3]
[316709251,1709597447184,-2698.45196108,0.00023697,3]
[316709253,1709597447193,-567.10930148,0.000239,2]
[316709255,1709597447203,-170.75215729,0.000239,2]
[316709257,1709597447212,-38023.66181758,0.0002398,2]
[316709259,1709597447221,-8238.30978747,0.0002398,2]
[316709261,1709597447231,-11932.56987544,0.00024,2]
[316709263,1709597447240,-4646.28214522,0.00024,2]
[316709265,1709597447249,-10984.15886244,0.00024,4]
[316709267,1709597447258,-2000.0,0.00024,2]
[316709269,1709597447267,-300.0,0.00024,11]
[316709271,1709597447276,-1137.77314994,0.00024,2]
[316710959,1709597468661,19006.57847638,0.00017718,2]
[316711071,1709598638014,-322.90160072,0.00021841,2]
[316711106,1709598642903,-161.1460224,0.0002178,2]
[316711107,1709598642913,-1080.24298436,0.0002184,2]
[316711108,1709598642922,-197.4952103,0.00021841,2]
[316711109,1709598642969,-183.04946678,0.00021841,2]
[316711110,1709598642978,-155.18622347,0.00021841,2]
[316711111,1709598642988,-13105.64286082,0.00021842,2]
[316711384,1709599832274,-155.19865428,0.0001974,2]
[316711386,1709599832283,-2188.2,0.00019741,2]
[316711388,1709599832293,-106.60134572,0.00019742,2]
[316711957,1709599838078,-222.84649944,0.00019742,2]
[316711958,1709599838088,-1607.26750056,0.0002188,4]
[316712422,1709599843134,-2346.73249944,0.0002188,4]
[316712424,1709599843144,-248.0,0.00022,2]
[316712425,1709599843153,-3023.37081822,0.0002217,2]
[316712427,1709599843163,-300.0,0.0002219,2]
[316712429,1709599843173,-248.0,0.00022192,2]
[316712430,1709599843183,-227.562621,0.0002221,2]
[316712432,1709599843193,-169.838586,0.00022214,2]
[316712434,1709599843203,-183.14544427,0.00022832,2]
[316712435,1709599843213,-164.20923488,0.00022834,2]
[316712437,1709599843222,-248.0,0.00023014,2]
[316712438,1709599843231,-228.3735892,0.00023089,3]
[316712440,1709599843241,-3591.57927685,0.0002309,5]
[316712441,1709599843251,-191.28593919,0.0002309,3]
[316712442,1709599843260,-980.33683315,0.00023091,3]
[316712443,1709599843270,-2010.95183367,0.00023091,3]
[316712444,1709599843280,-200.0,0.000239,2]
[316712445,1709599843290,-656.42715412,0.00023915,2]
[316712446,1709599843299,-2504.50256786,0.00023988,2]
[316712447,1709599843309,-448.94010068,0.00024,2]
[316712448,1709599843318,-300.0,0.00024,11]
[316712449,1709599843327,-2000.0,0.00024,2]
[316712450,1709599843337,-1458.88602451,0.00024,2]